[Event "NJSK 2018 Jeugd B"]
[Site "Assen, Netherlands"]
[Date "2018.04.30"]
[Round "2.6"]
[White "Honkoop, Gilian"]
[Black "Cchung, Chi Yun"]
[Result "1-0"]
[TimeControl "40/90m+30m+30sec/move"]
[WhiteElo "1889"]
[BlackElo "1783"]

1. d4 {[%clk 01:30:59]} {[%emt 00:00:01]} Nf6 {[%clk 01:30:53]} {[%emt
00:00:07]} 2. Bf4 {[%clk 01:31:28]} {[%emt 00:00:02]} g6 {[%clk 01:31:08]}
{[%emt 00:00:14]} 3. Nc3 {[%clk 01:31:56]} {[%emt 00:00:02]} Bg7 {[%clk
01:30:27]} {[%emt 00:01:12]} 4. e4 {[%clk 01:32:23]} {[%emt 00:00:03]} d5
{[%clk 01:30:50]} {[%emt 00:00:07]} 5. Nb5 {[%clk 01:31:59]} {[%emt 00:00:54]}
Na6 {[%clk 01:24:08]} {[%emt 00:07:11]} 6. e5 {[%clk 01:32:11]} {[%emt
00:00:18]} Nd7 {[%clk 01:21:58]} {[%emt 00:02:40]} 7. Nf3 {[%clk 01:29:41]}
{[%emt 00:03:00]} c5 {[%clk 01:12:42]} {[%emt 00:09:46]} 8. c3 {[%clk
01:20:48]} {[%emt 00:09:24]} Nf8 {[%clk 00:46:12]} {[%emt 00:27:00]} 9. Qd2
{[%clk 01:16:03]} {[%emt 00:05:15]} Ne6 {[%clk 00:42:46]} {[%emt 00:03:56]} 10.
Be3 {[%clk 01:13:58]} {[%emt 00:02:34]} b6 {[%clk 00:40:30]} {[%emt 00:02:45]}
11. Rd1 {[%clk 01:10:24]} {[%emt 00:04:05]} Bb7 {[%clk 00:39:56]} {[%emt
00:01:04]} 12. Be2 {[%clk 01:10:04]} {[%emt 00:00:51]} Nac7 {[%clk 00:38:04]}
{[%emt 00:02:21]} 13. O-O {[%clk 01:07:11]} {[%emt 00:03:22]} O-O {[%clk
00:37:37]} {[%emt 00:00:58]} 14. Na3 {[%clk 01:07:27]} {[%emt 00:00:14]} Qd7
{[%clk 00:25:59]} {[%emt 00:12:07]} 15. Nh4 {[%clk 01:06:56]} {[%emt 00:01:02]}
f5 {[%clk 00:25:04]} {[%emt 00:01:24]} 16. exf6 {[%clk 01:05:16]} {[%emt
00:02:11]} Bxf6 {[%clk 00:18:33]} {[%emt 00:07:01]} 17. Nf3 {[%clk 01:05:14]}
{[%emt 00:00:33]} Qd6 {[%clk 00:18:35]} {[%emt 00:00:26]} 18. Nc2 {[%clk
01:04:45]} {[%emt 00:01:00]} Bg7 {[%clk 00:18:31]} {[%emt 00:00:34]} 19. g3
{[%clk 01:03:57]} {[%emt 00:01:18]} Ne8 {[%clk 00:14:57]} {[%emt 00:04:04]} 20.
Bh6 {[%clk 01:03:10]} {[%emt 00:01:17]} Nf6 {[%clk 00:13:56]} {[%emt 00:01:31]}
21. Bxg7 {[%clk 01:03:33]} {[%emt 00:00:08]} Nxg7 {[%clk 00:13:48]} {[%emt
00:00:38]} 22. Ne5 {[%clk 01:03:32]} {[%emt 00:00:31]} Ne4 {[%clk 00:14:10]}
{[%emt 00:00:08]} 23. Qc1 {[%clk 01:03:06]} {[%emt 00:00:55]} Nf5 {[%clk
00:10:56]} {[%emt 00:03:43]} 24. f3 {[%clk 01:02:21]} {[%emt 00:01:15]} Nf6
{[%clk 00:10:55]} {[%emt 00:00:31]} 25. Ne3 {[%clk 01:00:56]} {[%emt 00:01:56]}
Nd7 {[%clk 00:09:57]} {[%emt 00:01:28]} 26. Nxf5 {[%clk 01:00:55]} {[%emt
00:00:31]} Rxf5 {[%clk 00:10:20]} {[%emt 00:00:06]} 27. Nxd7 {[%clk 01:01:08]}
{[%emt 00:00:18]} Qxd7 {[%clk 00:10:34]} {[%emt 00:00:16]} 28. f4 {[%clk
01:01:27]} {[%emt 00:00:11]} Rf6 {[%clk 00:07:57]} {[%emt 00:03:07]} 29. Qd2
{[%clk 00:58:16]} {[%emt 00:03:42]} Rd8 {[%clk 00:06:21]} {[%emt 00:02:05]} 30.
Bf3 {[%clk 00:56:52]} {[%emt 00:01:54]} c4 {[%clk 00:04:42]} {[%emt 00:02:10]}
31. Rde1 {[%clk 00:56:18]} {[%emt 00:01:03]} Kf7 {[%clk 00:03:33]} {[%emt
00:01:38]} 32. Re5 {[%clk 00:55:41]} {[%emt 00:01:07]} Rd6 {[%clk 00:03:25]}
{[%emt 00:00:39]} 33. f5 {[%clk 00:54:51]} {[%emt 00:01:19]} Kg7 {[%clk
00:02:05]} {[%emt 00:01:50]} 34. Bg4 {[%clk 00:52:57]} {[%emt 00:02:24]} Rf6
{[%clk 00:01:08]} {[%emt 00:01:28]} 35. Qe2 {[%clk 00:52:00]} {[%emt 00:01:26]}
Re8 {[%clk 00:00:37]} {[%emt 00:01:01]} 36. fxg6 {[%clk 00:51:33]} {[%emt
00:00:58]} Rxf1+ {[%clk 00:00:38]} {[%emt 00:00:30]} 37. Qxf1 {[%clk 00:50:37]}
{[%emt 00:01:25]} e6 {[%emt 00:00:39]} 1-0

[Event "NJSK 2018 Jeugd B"]
[Site "Assen, Netherlands"]
[Date "2018.04.30"]
[Round "2.7"]
[White "Achuthan, Dylan"]
[Black "Gevorkjan, Lewon"]
[Result "1-0"]
[TimeControl "40/90m+30m+30sec/move"]
[WhiteElo "1673"]
[BlackElo "1821"]

1. e4 {[%clk 01:30:57]} {[%emt 00:00:01]} d5 {[%clk 01:30:46]} {[%emt
00:00:15]} 2. exd5 {[%clk 01:31:18]} {[%emt 00:00:09]} Nf6 {[%clk 01:31:09]}
{[%emt 00:00:07]} 3. Nf3 {[%clk 01:31:36]} {[%emt 00:00:12]} Nxd5 {[%clk
01:31:20]} {[%emt 00:00:19]} 4. d4 {[%clk 01:31:47]} {[%emt 00:00:18]} Bf5
{[%clk 01:30:51]} {[%emt 00:01:00]} 5. Bd3 {[%clk 01:31:53]} {[%emt 00:00:24]}
Bxd3 {[%clk 01:28:23]} {[%emt 00:02:59]} 6. Qxd3 {[%clk 01:32:14]} {[%emt
00:00:09]} e6 {[%clk 01:28:29]} {[%emt 00:00:23]} 7. O-O {[%clk 01:30:10]}
{[%emt 00:02:33]} Nc6 {[%clk 01:26:34]} {[%emt 00:02:27]} 8. a3 {[%clk
01:25:44]} {[%emt 00:04:56]} Be7 {[%clk 01:24:09]} {[%emt 00:02:54]} 9. c4
{[%clk 01:18:34]} {[%emt 00:07:40]} Nb6 {[%clk 01:23:24]} {[%emt 00:01:14]} 10.
Be3 {[%clk 01:16:13]} {[%emt 00:02:51]} O-O {[%clk 01:20:09]} {[%emt 00:03:46]}
11. Nc3 {[%clk 01:09:10]} {[%emt 00:07:33]} Bf6 {[%clk 01:17:30]} {[%emt
00:03:08]} 12. Rfd1 {[%clk 01:05:07]} {[%emt 00:04:34]} Na5 {[%clk 01:08:25]}
{[%emt 00:09:36]} 13. Nd2 {[%clk 00:52:44]} {[%emt 00:12:52]} c5 {[%clk
00:36:08]} {[%emt 00:32:47]} 14. Nce4 {[%clk 00:25:50]} {[%emt 00:27:24]} Bxd4
{[%clk 00:34:54]} {[%emt 00:01:44]} 15. Ng5 {[%clk 00:20:59]} {[%emt 00:05:20]}
g6 {[%clk 00:30:44]} {[%emt 00:04:41]} 16. Bxd4 {[%clk 00:18:07]} {[%emt
00:03:22]} Qxd4 {[%clk 00:28:17]} {[%emt 00:02:56]} 17. Qh3 {[%clk 00:16:50]}
{[%emt 00:01:48]} Qg7 {[%clk 00:27:11]} {[%emt 00:01:36]} 18. Nde4 {[%clk
00:13:02]} {[%emt 00:04:18]} h6 {[%clk 00:25:16]} {[%emt 00:02:25]} 19. Qf3
{[%clk 00:09:17]} {[%emt 00:04:15]} Qxb2 {[%clk 00:11:37]} {[%emt 00:14:08]} 20.
Nf6+ {[%clk 00:04:48]} {[%emt 00:05:00]} Kg7 {[%clk 00:11:07]} {[%emt
00:01:00]} 21. Nge4 {[%clk 00:04:52]} {[%emt 00:00:26]} Naxc4 {[%clk 00:08:48]}
{[%emt 00:02:49]} 22. Rab1 {[%clk 00:03:17]} {[%emt 00:02:05]} Qe5 {[%clk
00:07:26]} {[%emt 00:01:52]} 23. Ng4 {[%clk 00:03:05]} {[%emt 00:00:42]} Qf5
{[%clk 00:07:01]} {[%emt 00:00:55]} 24. Qc3+ {[%clk 00:00:40]} {[%emt
00:02:55]} e5 {[%clk 00:06:00]} {[%emt 00:01:31]} 25. Ngf6 {[%clk 00:00:46]}
{[%emt 00:00:24]} Rad8 {[%clk 00:05:27]} {[%emt 00:01:03]} 26. Re1 {[%clk
00:00:35]} {[%emt 00:00:42]} Rd4 {[%clk 00:05:04]} {[%emt 00:00:52]} 27. f3
{[%clk 00:00:36]} {[%emt 00:00:29]} Rfd8 {[%clk 00:05:02]} {[%emt 00:00:32]} 28.
Ng4 {[%clk 00:00:42]} {[%emt 00:00:24]} Nd5 {[%clk 00:03:21]} {[%emt 00:02:11]}
29. Qc1 {[%clk 00:01:02]} {[%emt 00:00:10]} h5 {[%clk 00:02:34]} {[%emt
00:01:16]} 30. Qh6+ {[%clk 00:00:49]} {[%emt 00:00:43]} Kg8 {[%clk 00:03:02]}
{[%emt 00:00:02]} 31. Ng5 {[%clk 00:00:37]} {[%emt 00:00:43]} hxg4 {[%clk
00:02:53]} {[%emt 00:00:38]} 32. Qh7+ {[%clk 00:00:40]} {[%emt 00:00:28]} Kf8
{[%clk 00:03:14]} {[%emt 00:00:08]} 33. Rxb7 {[%clk 00:00:54]} {[%emt
00:00:16]} Ne7 {[%clk 00:01:50]} {[%emt 00:01:54]} 34. Qh6+ {[%clk 00:00:57]}
{[%emt 00:00:28]} Kg8 {[%clk 00:00:39]} {[%emt 00:01:41]} 35. Qh7+ {[%clk
00:01:14]} {[%emt 00:00:13]} Kf8 {[%clk 00:01:08]} 36. Qh8+ {[%clk 00:01:30]}
{[%emt 00:00:14]} Ng8 {[%clk 00:01:32]} {[%emt 00:00:05]} 37. Nh7+ {[%clk
00:01:46]} {[%emt 00:00:14]} 1-0

[Event "NJSK 2018 Jeugd B"]
[Site "Assen, Netherlands"]
[Date "2018.04.30"]
[Round "2.8"]
[White "Emans, Job"]
[Black "Ypma, Jord"]
[Result "1-0"]
[TimeControl "40/90m+30m+30sec/move"]
[WhiteElo "1803"]
[BlackElo "1737"]

1. d4 {[%clk 01:30:56]} {[%emt 00:00:04]} d5 {[%emt 00:00:21]} 2. c4 {[%clk
01:31:20]} c6 {[%clk 01:30:56]} {[%emt 00:00:20]} 3. Nc3 {[%clk 01:31:38]}
{[%emt 00:00:12]} Nf6 {[%clk 01:31:17]} {[%emt 00:00:09]} 4. Nf3 {[%clk
01:31:49]} {[%emt 00:00:18]} dxc4 {[%clk 01:30:23]} {[%emt 00:01:25]} 5. a4
{[%clk 01:32:05]} {[%emt 00:00:15]} Bf5 {[%clk 01:30:46]} {[%emt 00:00:06]} 6.
e3 {[%clk 01:31:41]} {[%emt 00:00:55]} e6 {[%clk 01:31:01]} {[%emt 00:00:14]} 7.
Bxc4 {[%clk 01:29:15]} {[%emt 00:02:56]} Bb4 {[%clk 01:31:03]} {[%emt
00:00:27]} 8. O-O {[%clk 01:28:19]} {[%emt 00:01:26]} O-O {[%clk 01:31:06]}
{[%emt 00:00:26]} 9. Bd3 {[%clk 01:17:54]} {[%emt 00:10:57]} Nbd7 {[%clk
01:29:40]} {[%emt 00:01:55]} 10. Bxf5 {[%clk 01:10:11]} {[%emt 00:08:14]} exf5
{[%clk 01:29:15]} {[%emt 00:00:55]} 11. Qc2 {[%clk 01:10:23]} {[%emt 00:00:17]}
g6 {[%clk 01:28:46]} {[%emt 00:00:59]} 12. b3 {[%clk 01:10:38]} {[%emt
00:00:17]} Re8 {[%clk 01:24:48]} {[%emt 00:04:27]} 13. Bb2 {[%clk 01:09:57]}
{[%emt 00:01:11]} a5 {[%clk 01:24:25]} {[%emt 00:00:52]} 14. Rad1 {[%clk
01:08:46]} {[%emt 00:01:42]} Nb6 {[%clk 01:12:58]} {[%emt 00:11:57]} 15. Ne2
{[%clk 01:02:37]} {[%emt 00:06:38]} Nbd5 {[%clk 01:09:07]} {[%emt 00:04:21]} 16.
Ne5 {[%clk 00:59:14]} {[%emt 00:03:54]} Bd6 {[%clk 01:05:15]} {[%emt 00:04:22]}
17. Qc4 {[%clk 00:49:04]} {[%emt 00:10:40]} Qe7 {[%clk 01:01:22]} {[%emt
00:04:23]} 18. Nf4 {[%clk 00:25:28]} {[%emt 00:24:06]} Nxf4 {[%clk 00:54:55]}
{[%emt 00:06:57]} 19. exf4 {[%clk 00:24:19]} {[%emt 00:01:39]} Nd5 {[%clk
00:54:12]} {[%emt 00:01:13]} 20. g3 {[%clk 00:22:50]} {[%emt 00:01:58]} f6
{[%clk 00:50:35]} {[%emt 00:04:06]} 21. Nd3 {[%clk 00:22:09]} {[%emt 00:01:12]}
Qe2 {[%clk 00:41:50]} {[%emt 00:09:14]} 22. Rfe1 {[%clk 00:20:05]} {[%emt
00:02:35]} Qf3 {[%clk 00:40:10]} {[%emt 00:02:10]} 23. Nc5 {[%clk 00:18:28]}
{[%emt 00:02:07]} Kg7 {[%clk 00:30:46]} {[%emt 00:09:54]} 24. Qd3 {[%clk
00:13:58]} {[%emt 00:05:01]} Qxd3 {[%clk 00:24:25]} {[%emt 00:06:51]} 25. Nxd3
{[%clk 00:13:31]} {[%emt 00:00:56]} Kf7 {[%clk 00:22:48]} {[%emt 00:02:07]} 26.
Kf1 {[%clk 00:12:10]} {[%emt 00:01:51]} Re4 {[%clk 00:21:05]} {[%emt 00:02:13]}
27. Nc5 {[%clk 00:10:37]} {[%emt 00:02:03]} Bxc5 {[%clk 00:21:15]} {[%emt
00:00:20]} 28. dxc5 {[%clk 00:09:46]} {[%emt 00:01:21]} Rae8 {[%clk 00:20:04]}
{[%emt 00:01:41]} 29. Rxe4 {[%clk 00:09:47]} {[%emt 00:00:29]} fxe4 {[%clk
00:20:21]} {[%emt 00:00:12]} 30. Ke2 {[%clk 00:09:40]} {[%emt 00:00:38]} g5
{[%clk 00:12:08]} {[%emt 00:08:44]} 31. f5 {[%clk 00:07:52]} {[%emt 00:02:17]}
g4 {[%clk 00:12:16]} {[%emt 00:00:21]} 32. Rd4 {[%clk 00:07:14]} {[%emt
00:01:09]} e3 {[%clk 00:07:02]} {[%emt 00:05:44]} 33. Rd3 {[%clk 00:01:49]}
{[%emt 00:05:55]} exf2+ {[%clk 00:06:32]} {[%emt 00:01:00]} 34. Kxf2 {[%clk
00:02:18]} {[%emt 00:00:01]} Re4 {[%clk 00:06:19]} {[%emt 00:00:42]} 35. Bc1
{[%clk 00:02:07]} {[%emt 00:00:42]} Re5 {[%clk 00:06:22]} {[%emt 00:00:27]} 36.
Bd2 {[%clk 00:01:58]} {[%emt 00:00:39]} Rxf5+ {[%clk 00:06:32]} {[%emt
00:00:20]} 37. Kg1 {[%clk 00:02:13]} {[%emt 00:00:15]} Ke6 {[%clk 00:05:26]}
{[%emt 00:01:36]} 38. Bxa5 {[%clk 00:01:56]} {[%emt 00:00:47]} Ke5 {[%clk
00:04:45]} {[%emt 00:01:11]} 39. b4 {[%clk 00:01:01]} {[%emt 00:01:26]} Ke4
{[%clk 00:04:58]} {[%emt 00:00:17]} 40. Rd1 {[%clk 00:00:58]} {[%emt 00:00:32]}
Ne3 {[%clk 00:04:58]} {[%emt 00:00:30]} 41. Rc1 {[%clk 00:28:29]} {[%emt
00:03:00]} Rd5 {[%clk 00:32:39]} {[%emt 00:02:48]} 42. b5 {[%clk 00:27:41]}
{[%emt 00:01:18]} Rd4 {[%clk 00:32:18]} {[%emt 00:00:51]} 43. Ra1 {[%clk
00:18:55]} {[%emt 00:09:15]} cxb5 {[%clk 00:23:13]} {[%emt 00:09:36]} 44. axb5
{[%clk 00:18:15]} {[%emt 00:01:11]} Rc4 {[%clk 00:23:26]} {[%emt 00:00:16]} 45.
c6 {[%clk 00:15:59]} {[%emt 00:02:46]} b6 {[%clk 00:22:15]} {[%emt 00:01:41]}
46. Bxb6 {[%clk 00:16:16]} {[%emt 00:00:13]} Nd5 {[%clk 00:22:35]} {[%emt
00:00:10]} 47. Ba5 {[%clk 00:12:58]} {[%emt 00:03:48]} Kd4 {[%clk 00:21:18]}
{[%emt 00:01:48]} 48. Rb1 {[%clk 00:12:50]} {[%emt 00:00:38]} Kc5 {[%clk
00:19:54]} {[%emt 00:01:53]} 49. b6 {[%clk 00:12:35]} {[%emt 00:00:45]} Nxb6
{[%clk 00:19:26]} {[%emt 00:00:58]} 50. Rxb6 {[%clk 00:11:13]} {[%emt
00:01:51]} Kd5 {[%clk 00:18:13]} {[%emt 00:01:44]} 51. c7 {[%clk 00:10:50]}
{[%emt 00:00:52]} 1-0

[Event "NJSK 2018 Jeugd B"]
[Site "Assen, Netherlands"]
[Date "2018.05.01"]
[Round "3.1"]
[White "Tang, Charlie"]
[Black "De Boer, Eelke"]
[Result "0-1"]
[TimeControl "40/90m+30m+30sec/move"]
[WhiteElo "2127"]
[BlackElo "2318"]

1. e4 {[%clk 01:30:54]} {[%emt 00:00:05]} c5 {[%clk 01:30:54]} {[%emt
00:00:06]} 2. Nf3 {[%clk 01:31:14]} {[%emt 00:00:10]} d6 {[%clk 01:31:18]}
{[%emt 00:00:06]} 3. d4 {[%clk 01:31:35]} {[%emt 00:00:09]} cxd4 {[%clk
01:31:40]} {[%emt 00:00:08]} 4. Nxd4 {[%clk 01:31:49]} {[%emt 00:00:16]} Nf6
{[%clk 01:32:02]} {[%emt 00:00:08]} 5. Nc3 {[%clk 01:32:08]} {[%emt 00:00:12]}
a6 {[%clk 01:32:27]} {[%emt 00:00:05]} 6. Be3 {[%clk 01:32:13]} {[%emt
00:00:24]} e5 {[%clk 01:32:50]} {[%emt 00:00:07]} 7. Nb3 {[%clk 01:32:33]}
{[%emt 00:00:11]} Be6 {[%clk 01:33:12]} {[%emt 00:00:07]} 8. f3 {[%clk
01:32:50]} {[%emt 00:00:14]} h5 {[%clk 01:33:36]} {[%emt 00:00:06]} 9. Qd2
{[%clk 01:33:11]} {[%emt 00:00:09]} Nbd7 {[%clk 01:33:59]} {[%emt 00:00:06]} 10.
O-O-O {[%clk 01:33:22]} {[%emt 00:00:19]} Be7 {[%clk 01:34:21]} {[%emt
00:00:08]} 11. Kb1 {[%clk 01:33:22]} {[%emt 00:00:31]} b5 {[%clk 01:34:44]}
{[%emt 00:00:07]} 12. Nd5 {[%clk 01:33:12]} {[%emt 00:00:39]} Bxd5 {[%clk
01:35:06]} {[%emt 00:00:08]} 13. exd5 {[%clk 01:33:35]} {[%emt 00:00:07]} Nb6
{[%clk 01:35:30]} {[%emt 00:00:06]} 14. Bxb6 {[%clk 01:33:53]} {[%emt
00:00:13]} Qxb6 {[%clk 01:35:52]} {[%emt 00:00:07]} 15. Qb4 {[%clk 01:33:49]}
{[%emt 00:00:34]} O-O {[%clk 01:27:16]} {[%emt 00:09:07]} 16. Na5 {[%clk
01:26:09]} {[%emt 00:08:10]} Rfc8 {[%clk 01:12:13]} {[%emt 00:15:33]} 17. Nc6
{[%clk 01:13:36]} {[%emt 00:13:03]} Nxd5 {[%clk 01:09:57]} {[%emt 00:02:45]} 18.
Nxe7+ {[%clk 01:13:57]} {[%emt 00:00:09]} Nxe7 {[%clk 01:10:20]} {[%emt
00:00:07]} 19. Rxd6 {[%clk 01:13:50]} {[%emt 00:00:37]} Rd8 {[%clk 01:08:40]}
{[%emt 00:02:10]} 20. Rxd8+ {[%clk 01:13:40]} {[%emt 00:00:40]} Rxd8 {[%clk
01:09:04]} {[%emt 00:00:06]} 21. Bd3 {[%clk 01:13:54]} {[%emt 00:00:16]} Ng6
{[%clk 01:06:54]} {[%emt 00:02:40]} 22. Qe4 {[%clk 01:12:25]} {[%emt 00:01:59]}
Nf4 {[%clk 00:47:37]} {[%emt 00:19:47]} 23. Qxe5 {[%clk 00:59:21]} {[%emt
00:13:36]} Nxd3 {[%clk 00:47:44]} {[%emt 00:00:22]} 24. cxd3 {[%clk 00:59:43]}
{[%emt 00:00:07]} Qg6 {[%clk 00:47:45]} {[%emt 00:00:28]} 25. Qe2 {[%clk
00:57:30]} {[%emt 00:02:43]} Rxd3 {[%clk 00:45:26]} {[%emt 00:02:50]} 26. Qc2
{[%clk 00:57:47]} {[%emt 00:00:14]} Rd2 {[%clk 00:35:48]} {[%emt 00:10:07]} 27.
Qxg6 {[%clk 00:58:10]} {[%emt 00:00:07]} fxg6 {[%clk 00:36:13]} {[%emt
00:00:05]} 28. Rc1 {[%clk 00:49:34]} {[%emt 00:09:06]} Rxg2 {[%clk 00:36:16]}
{[%emt 00:00:27]} 29. Rc2 {[%clk 00:50:01]} {[%emt 00:00:03]} Rg1+ {[%clk
00:19:04]} {[%emt 00:17:42]} 30. Rc1 {[%clk 00:50:27]} {[%emt 00:00:04]} Rg5
{[%clk 00:19:21]} {[%emt 00:00:13]} 31. Rc6 {[%clk 00:50:51]} {[%emt 00:00:07]}
a5 {[%clk 00:15:23]} {[%emt 00:04:27]} 32. a3 {[%clk 00:26:09]} {[%emt
00:25:12]} h4 {[%clk 00:13:34]} {[%emt 00:02:20]} 33. a4 {[%clk 00:19:05]}
{[%emt 00:07:33]} bxa4 {[%clk 00:12:57]} {[%emt 00:01:07]} 34. Rc4 {[%clk
00:19:02]} {[%emt 00:00:34]} a3 {[%clk 00:07:33]} {[%emt 00:05:53]} 35. Rxh4
{[%clk 00:19:22]} {[%emt 00:00:09]} Rb5 {[%clk 00:07:54]} {[%emt 00:00:10]} 36.
Rg4 {[%clk 00:11:00]} {[%emt 00:08:52]} axb2 {[%clk 00:04:52]} {[%emt
00:03:31]} 37. Rxg6 {[%clk 00:11:24]} {[%emt 00:00:06]} a4 {[%clk 00:05:16]}
{[%emt 00:00:07]} 38. Ra6 {[%clk 00:11:49]} {[%emt 00:00:05]} Rb4 {[%clk
00:05:42]} {[%emt 00:00:05]} 39. h4 {[%clk 00:09:25]} {[%emt 00:02:53]} Kf7
{[%clk 00:02:51]} {[%emt 00:03:20]} 40. h5 {[%clk 00:09:29]} {[%emt 00:00:26]}
Ke7 {[%clk 00:02:35]} {[%emt 00:00:46]} 41. f4 {[%clk 00:09:21]} {[%emt
00:00:39]} Kf7 {[%clk 00:02:51]} {[%emt 00:00:13]} 42. f5 {[%clk 00:08:59]}
{[%emt 00:00:53]} Ke7 {[%clk 00:19:34]} {[%emt 00:13:47]} 43. Re6+ {[%clk
00:34:50]} {[%emt 00:04:39]} Kf8 {[%clk 00:19:45]} {[%emt 00:00:18]} 44. Ra6
{[%clk 00:35:13]} {[%emt 00:00:08]} Kf7 {[%clk 00:20:09]} {[%emt 00:00:06]} 45.
Ra8 {[%clk 00:35:20]} {[%emt 00:00:22]} Kf6 {[%clk 00:20:29]} {[%emt 00:00:11]}
46. Ra7 {[%clk 00:35:44]} {[%emt 00:00:06]} Kxf5 {[%clk 00:15:11]} {[%emt
00:05:47]} 47. Rxg7 {[%clk 00:36:01]} {[%emt 00:00:14]} a3 {[%clk 00:15:37]}
{[%emt 00:00:04]} 48. Rg1 {[%clk 00:36:25]} {[%emt 00:00:05]} Rb6 {[%clk
00:15:59]} {[%emt 00:00:08]} 49. Ka2 {[%clk 00:34:49]} {[%emt 00:02:07]} Rc6
{[%clk 00:16:00]} {[%emt 00:00:29]} 50. Kb1 {[%clk 00:34:12]} {[%emt 00:01:07]}
Kf4 {[%clk 00:16:19]} {[%emt 00:00:11]} 51. h6 {[%clk 00:22:12]} {[%emt
00:12:30]} Rxh6 {[%clk 00:16:36]} {[%emt 00:00:12]} 52. Ka2 {[%clk 00:22:26]}
{[%emt 00:00:17]} Rc6 {[%clk 00:14:39]} {[%emt 00:02:26]} 53. Kb1 {[%clk
00:21:58]} {[%emt 00:00:58]} Rc3 {[%clk 00:14:17]} {[%emt 00:00:52]} 54. Rh1
{[%clk 00:21:10]} {[%emt 00:01:18]} Kg3 {[%emt 00:03:27]} 55. Rd1 {[%clk
00:20:08]} Kf2 {[%clk 00:12:57]} {[%emt 00:00:24]} 56. Rh1 {[%clk 00:20:11]}
{[%emt 00:00:27]} Re3 {[%clk 00:12:49]} {[%emt 00:00:39]} 57. Rh2+ {[%clk
00:18:57]} {[%emt 00:01:45]} Kg1 {[%clk 00:13:09]} {[%emt 00:00:10]} 0-1